Workbook

Sheet DESTRUCTIONS
A1: www.DIYStrengthTraining.com
A2: Click Here to Watch My Video on How to Use the Spreadshet
A3: Click Here to Get Notified When I Update this Spreadsheet
A4: Click Here to Get Jim Wendler's Book(s) and Read Them

Sheet Cycle 1
B1: 5/3/1 Method Calculator - NO ROUNDING | E1: Cycle Start Date:
B2: www.DIY-StrengthTraining.com | E2: Assistance % Increase: | G2: 0%
B3: Training Max (90%) | D3: Estimated 1RM | F3: Weight Used | G3: Reps Achieved
B4: Squat: | C4: =(E4*0.9) -> 0 | D4: Squat: | E4: =F4*G4*0.033333+F4 -> 0
B5: Bench: | C5: =(E5*0.9) -> 0 | D5: Bench: | E5: =F5*G5*0.033333+F5 -> 0
B6: Deadlift: | C6: 0 | D6: Deadlift: | E6: 0
B7: OH Press: | C7: 0 | D7: OH Press: | E7: 0
B8: Exercise | C8: Week 1 | E8: Week 2 | G8: Week 3 | I8: Week 4 - DELOAD
C9: Weight | D9: Reps | E9: Weight | F9: Reps | G9: Weight | H9: Reps | I9: Weight | J9: Reps
A10: Monday | B10: Squat | C10: =C4*0.4 -> 0 | D10: 5 | E10: =C10 -> 0 | F10: 5 | G10: =E10 -> 0 | H10: 5 | I10: - | J10: -
C11: =C4*0.47 -> 0 | D11: 5 | E11: =C4*0.5 -> 0 | F11: 5 | G11: =E11 -> 0 | H11: 5 | I11: - | J11: -
C12: =C4*0.55 -> 0 | D12: 3 | E12: =C4*0.6 -> 0 | F12: 3 | G12: =E12 -> 0 | H12: 3 | I12: - | J12: -
C13: =C4*0.65 -> 0 | D13: 5 | E13: =(C4*0.7) -> 0 | F13: 3 | G13: =(C4*0.75) -> 0 | H13: 5 | I13: =(C4*0.4) -> 0 | J13: 5
C14: =C4*0.75 -> 0 | D14: 5 | E14: =(C4*0.8) -> 0 | F14: 3 | G14: =(C4*0.85) -> 0 | H14: 3 | I14: =(C4*0.5) -> 0 | J14: 5
C15: =C4*0.85 -> 0 | D15: 5 | E15: =(C4*0.9) -> 0 | F15: 3 | G15: =(C4*0.95) -> 0 | H15: 1 | I15: =(C4*0.6) -> 0 | J15: 5
B16: Assistance 1 | D16: 5x10 | E16: =(G2+1)*C16 -> 0 | F16: 5x10 | G16: =(G2+1)*E16 -> 0 | H16: 5x10 | I16: =C16 -> 0 | J16: 5x10
B17: Assistance 2 | D17: 5x12 | E17: =(G2+1)*C17 -> 0 | F17: 5x12 | G17: =(G2+1)*E17 -> 0 | H17: 5x12 | I17: =C17 -> 0 | J17: 5x12
B18: Ab Exercise | D18: 5x13 | E18: =(G2+1)*C18 -> 0 | F18: 5x13 | G18: =(G2+1)*E18 -> 0 | H18: 5x13 | I18: =C18 -> 0 | J18: 5x13
A19: Tuesday | B19: Bench | C19: =C5*0.4 -> 0 | D19: 5 | E19: =C19 -> 0 | F19: 5 | G19: =E19 -> 0 | H19: 5 | I19: - | J19: -
C20: =C5*0.47 -> 0 | D20: 5 | E20: =C5*0.5 -> 0 | F20: 5 | G20: =E20 -> 0 | H20: 5 | I20: - | J20: -
C21: =C5*0.55 -> 0 | D21: 3 | E21: =C5*0.6 -> 0 | F21: 3 | G21: =E21 -> 0 | H21: 3 | I21: - | J21: -
C22: =C5*0.65 -> 0 | D22: 5 | E22: =(C5*0.7) -> 0 | F22: 3 | G22: =(C5*0.75) -> 0 | H22: 5 | I22: =(C5*0.4) -> 0 | J22: 5
C23: =C5*0.75 -> 0 | D23: 5 | E23: =(C5*0.8) -> 0 | F23: 3 | G23: =(C5*0.85) -> 0 | H23: 3 | I23: =(C5*0.5) -> 0 | J23: 5
C24: =C5*0.85 -> 0 | D24: 5 | E24: =(C5*0.9) -> 0 | F24: 3 | G24: =(C5*0.95) -> 0 | H24: 1 | I24: =(C5*0.6) -> 0 | J24: 5
B25: Assistance 1 | D25: 5x10 | E25: =(G2+1)*C25 -> 0 | F25: 5x10 | G25: =(G2+1)*E25 -> 0 | H25: 5x10 | I25: =C25 -> 0 | J25: 5x10
B26: Assistance 2 | D26: 5x10 | E26: =(G2+1)*C26 -> 0 | F26: 5x10 | G26: =(G2+1)*E26 -> 0 | H26: 5x10 | I26: =C26 -> 0 | J26: 5x10
B27: Ab Exercise | E27: =(G2+1)*C27 -> 0 | G27: =(G2+1)*E27 -> 0 | I27: =C27 -> 0
A28: Wed - ("Off")
A34: Thursday | B34: Deadlift | C34: =C6*0.4 -> 0 | D34: 5 | E34: =C34 -> 0 | F34: 5 | G34: =E34 -> 0 | H34: 5 | I34: - | J34: -
C35: =C6*0.47 -> 0 | D35: 5 | E35: =C6*0.5 -> 0 | F35: 5 | G35: =E35 -> 0 | H35: 5 | I35: - | J35: -
C36: =C6*0.55 -> 0 | D36: 3 | E36: =C6*0.6 -> 0 | F36: 3 | G36: =E36 -> 0 | H36: 3 | I36: - | J36: -
C37: =C6*0.65 -> 0 | D37: 5 | E37: =(C6*0.7) -> 0 | F37: 3 | G37: =(C6*0.75) -> 0 | H37: 5 | I37: =(C6*0.4) -> 0 | J37: 5
C38: =C6*0.75 -> 0 | D38: 5 | E38: =(C6*0.8) -> 0 | F38: 3 | G38: =(C6*0.85) -> 0 | H38: 3 | I38: =(C6*0.5) -> 0 | J38: 5
C39: =C6*0.85 -> 0 | D39: 5 | E39: =(C6*0.9) -> 0 | F39: 3 | G39: =(C6*0.95) -> 0 | H39: 1 | I39: =(C6*0.6) -> 0 | J39: 5
B40: Assistance 1 | D40: 5x10 | E40: =(G2+1)*C40 -> 0 | F40: 5x10 | G40: =(G2+1)*E40 -> 0 | H40: 5x10 | I40: =C40 -> 0 | J40: 5x10
B41: Assistance 2 | D41: 5x10 | E41: =(G2+1)*C41 -> 0 | F41: 5x10 | G41: =(G2+1)*E41 -> 0 | H41: 5x10 | I41: =C41 -> 0 | J41: 5x10
B42: Ab Exercise | D42: 5x13 | E42: =(G2+1)*C42 -> 0 | F42: 5x13 | G42: =(G2+1)*E42 -> 0 | H42: 5x13 | I42: =C42 -> 0 | J42: 5x13
A43: Friday | B43: OH Press | C43: =C7*0.4 -> 0 | D43: 5 | E43: =C43 -> 0 | F43: 5 | G43: =E43 -> 0 | H43: 5 | I43: - | J43: -
C44: =C7*0.47 -> 0 | D44: 5 | E44: =C7*0.5 -> 0 | F44: 5 | G44: =E44 -> 0 | H44: 5 | I44: - | J44: -
C45: =C7*0.55 -> 0 | D45: 3 | E45: =C7*0.6 -> 0 | F45: 3 | G45: =E45 -> 0 | H45: 3 | I45: - | J45: -
C46: =C7*0.65 -> 0 | D46: 5 | E46: =(C7*0.7) -> 0 | F46: 3 | G46: =(C7*0.75) -> 0 | H46: 5 | I46: =(C7*0.4) -> 0 | J46: 5
C47: =C7*0.75 -> 0 | D47: 5 | E47: =(C7*0.8) -> 0 | F47: 3 | G47: =(C7*0.85) -> 0 | H47: 3 | I47: =(C7*0.5) -> 0 | J47: 5
C48: =C7*0.85 -> 0 | D48: 5 | E48: =(C7*0.9) -> 0 | F48: 3 | G48: =(C7*0.95) -> 0 | H48: 1 | I48: =(C7*0.6) -> 0 | J48: 5
B49: Assistance 1 | D49: 5x10 | E49: =(G2+1)*C49 -> 0 | F49: 5x10 | G49: =(G2+1)*E49 -> 0 | H49: 5x10 | I49: =C49 -> 0 | J49: 5x10
B50: Assistance 2 | D50: 5x10 | E50: =(G2+1)*C50 -> 0 | F50: 5x10 | G50: =(G2+1)*E50 -> 0 | H50: 5x10 | I50: =C50 -> 0 | J50: 5x10
B51: Ab Exercise | D51: 5x12 | E51: =(G2+1)*C51 -> 0 | F51: 5x12 | G51: =(G2+1)*E51 -> 0 | H51: 5x12 | I51: =C51 -> 0 | J51: 5x12
A52: Sat or Sun - ("Off")

Sheet Cycle 2
B1: 5/3/1 Method Calculator - NO ROUNDING | E1: Cycle Start Date: | I1: Training Max usually should only increase 5lbs for upper and 10lbs for lower. You do NOT need to enter any numbers here unless you really want to manually adjust something. You will need to enter numbers below in the yellow areas and possibly other areas if you want.
B2: www.DIY-StrengthTraining.com | E2: Assistance % Increase: | G2: 0%
B3: Training Max | D3: 90% 1RM | E3: Estimated 1RM | G3: Weight Used | H3: Reps Achieved
B4: Squat: | C4: ='Cycle 1'!C4+10 -> 10 | D4: =(F4*0.9) -> 0 | E4: Squat: | F4: =(G4*H4*0.033333+G4) -> 0 | G4: =IF(G61=E61,'Cycle 1'!G15,IF(G61=D61,'Cycle 1'!E15,IF(G61=C61,'Cycle 1'!C15,"N/A"))) -> 0 | H4: =IF(G61=E61,'Cycle 1'!H15,IF(G61=D61,'Cycle 1'!F15,IF(G61=C61,'Cycle 1'!D15,"N/A"))) -> 1
B5: Bench: | C5: ='Cycle 1'!C5+5 -> 5 | D5: =(F5*0.9) -> 0 | E5: Bench: | F5: =(G5*H5*0.033333+G5) -> 0 | G5: =IF(G62=E62,'Cycle 1'!G24,IF(G62=D62,'Cycle 1'!E24,IF(G62=C62,'Cycle 1'!C24,"N/A"))) -> 0 | H5: =IF(G62=E62,'Cycle 1'!H24,IF(G62=D62,'Cycle 1'!F24,IF(G62=C62,'Cycle 1'!D24,"N/A"))) -> 1
B6: Deadlift: | C6: ='Cycle 1'!C6+10 -> 10 | D6: =(F6*0.9) -> 0 | E6: Deadlift: | F6: =(G6*H6*0.033333+G6) -> 0 | G6: =IF(G63=E63,'Cycle 1'!G39,IF(G63=D63,'Cycle 1'!E39,IF(G63=C63,'Cycle 1'!C39,"N/A"))) -> 0 | H6: =IF(G63=E63,'Cycle 1'!H39,IF(G63=D63,'Cycle 1'!F39,IF(G63=C63,'Cycle 1'!D39,"N/A"))) -> 1
B7: OH Press: | C7: ='Cycle 1'!C7+5 -> 5 | D7: =(F7*0.9) -> 0 | E7: OH Press: | F7: =(G7*H7*0.033333+G7) -> 0 | G7: =IF(G64=E64,'Cycle 1'!G48,IF(G64=D64,'Cycle 1'!E48,IF(G64=C64,'Cycle 1'!C48,"N/A"))) -> 0 | H7: =IF(G64=E64,'Cycle 1'!H48,IF(G64=D64,'Cycle 1'!F48,IF(G64=C64,'Cycle 1'!D48,"N/A"))) -> 1
B8: Exercise | C8: Week 1 | E8: Week 2 | G8: Week 3 | I8: Week 4 - DELOAD
C9: Weight | D9: Reps | E9: Weight | F9: Reps | G9: Weight | H9: Reps | I9: Weight | J9: Reps
A10: ='Cycle 1'!A10:A18 -> Monday | B10: Squat | C10: =C4*0.4 -> 4 | D10: 5 | E10: =C10 -> 4 | F10: 5 | G10: =E10 -> 4 | H10: 5 | I10: - | J10: -
C11: =C4*0.47 -> 5 | D11: 5 | E11: =C4*0.5 -> 5 | F11: 5 | G11: =E11 -> 5 | H11: 5 | I11: - | J11: -
C12: =C4*0.55 -> 6 | D12: 3 | E12: =C4*0.6 -> 6 | F12: 3 | G12: =E12 -> 6 | H12: 3 | I12: - | J12: -
C13: =C4*0.65 -> 7 | D13: 5 | E13: =(C4*0.7) -> 7 | F13: 3 | G13: =(C4*0.75) -> 8 | H13: 5 | I13: =(C4*0.4) -> 4 | J13: 5
C14: =C4*0.75 -> 8 | D14: 5 | E14: =(C4*0.8) -> 8 | F14: 3 | G14: =(C4*0.85) -> 9 | H14: 3 | I14: =(C4*0.5) -> 5 | J14: 5
C15: =C4*0.85 -> 9 | D15: 5 | E15: =(C4*0.9) -> 9 | F15: 3 | G15: =(C4*0.95) -> 10 | H15: 1 | I15: =(C4*0.6) -> 6 | J15: 5
B16: ='Cycle 1'!B16 -> Assistance 1 | C16: ='Cycle 1'!C16 -> 0 | D16: 5x10 | E16: =(G2+1)*C16 -> 0 | F16: 5x10 | G16: =(G2+1)*E16 -> 0 | H16: 5x10 | I16: =C16 -> 0 | J16: 5x10
B17: ='Cycle 1'!B17 -> Assistance 2 | C17: ='Cycle 1'!C17 -> 0 | D17: 5x12 | E17: =(G2+1)*C17 -> 0 | F17: 5x12 | G17: =(G2+1)*E17 -> 0 | H17: 5x12 | I17: =C17 -> 0 | J17: 5x12
B18: ='Cycle 1'!B18 -> Ab Exercise | C18: ='Cycle 1'!C18 -> 0 | D18: 5x13 | E18: =(G2+1)*C18 -> 0 | F18: 5x13 | G18: =(G2+1)*E18 -> 0 | H18: 5x13 | I18: =C18 -> 0 | J18: 5x13
A19: ='Cycle 1'!A19:A27 -> Tuesday | B19: Bench | C19: =C5*0.4 -> 2 | D19: 5 | E19: =C19 -> 2 | F19: 5 | G19: =E19 -> 2 | H19: 5 | I19: - | J19: -
C20: =C5*0.47 -> 2 | D20: 5 | E20: =C5*0.5 -> 3 | F20: 5 | G20: =E20 -> 3 | H20: 5 | I20: - | J20: -
C21: =C5*0.55 -> 3 | D21: 3 | E21: =C5*0.6 -> 3 | F21: 3 | G21: =E21 -> 3 | H21: 3 | I21: - | J21: -
C22: =C5*0.65 -> 3 | D22: 5 | E22: =(C5*0.7) -> 4 | F22: 3 | G22: =(C5*0.75) -> 4 | H22: 5 | I22: =(C5*0.4) -> 2 | J22: 5
C23: =C5*0.75 -> 4 | D23: 5 | E23: =(C5*0.8) -> 4 | F23: 3 | G23: =(C5*0.85) -> 4 | H23: 3 | I23: =(C5*0.5) -> 3 | J23: 5
C24: =C5*0.85 -> 4 | D24: 5 | E24: =(C5*0.9) -> 5 | F24: 3 | G24: =(C5*0.95) -> 5 | H24: 1 | I24: =(C5*0.6) -> 3 | J24: 5
B25: ='Cycle 1'!B25 -> Assistance 1 | C25: ='Cycle 1'!C25 -> 0 | D25: 5x10 | E25: =(G2+1)*C25 -> 0 | F25: 5x10 | G25: =(G2+1)*E25 -> 0 | H25: 5x10 | I25: =C25 -> 0 | J25: 5x10
B26: ='Cycle 1'!B26 -> Assistance 2 | C26: ='Cycle 1'!C26 -> 0 | D26: 5x10 | E26: =(G2+1)*C26 -> 0 | F26: 5x10 | G26: =(G2+1)*E26 -> 0 | H26: 5x10 | I26: =C26 -> 0 | J26: 5x10
B27: ='Cycle 1'!B27 -> Ab Exercise | C27: ='Cycle 1'!C27 -> 0 | E27: =(G2+1)*C27 -> 0 | G27: =(G2+1)*E27 -> 0 | I27: =C27 -> 0
A28: ='Cycle 1'!A28:A33 -> Wed - ("Off")
A34: ='Cycle 1'!A34:A42 -> Thursday | B34: Deadlift | C34: =C6*0.4 -> 4 | D34: 5 | E34: =C34 -> 4 | F34: 5 | G34: =E34 -> 4 | H34: 5 | I34: - | J34: -
C35: =C6*0.47 -> 5 | D35: 5 | E35: =C6*0.5 -> 5 | F35: 5 | G35: =E35 -> 5 | H35: 5 | I35: - | J35: -
C36: =C6*0.55 -> 6 | D36: 3 | E36: =C6*0.6 -> 6 | F36: 3 | G36: =E36 -> 6 | H36: 3 | I36: - | J36: -
C37: =C6*0.65 -> 7 | D37: 5 | E37: =(C6*0.7) -> 7 | F37: 3 | G37: =(C6*0.75) -> 8 | H37: 5 | I37: =(C6*0.4) -> 4 | J37: 5
C38: =C6*0.75 -> 8 | D38: 5 | E38: =(C6*0.8) -> 8 | F38: 3 | G38: =(C6*0.85) -> 9 | H38: 3 | I38: =(C6*0.5) -> 5 | J38: 5
C39: =C6*0.85 -> 9 | D39: 5 | E39: =(C6*0.9) -> 9 | F39: 3 | G39: =(C6*0.95) -> 10 | H39: 1 | I39: =(C6*0.6) -> 6 | J39: 5
B40: ='Cycle 1'!B40 -> Assistance 1 | C40: ='Cycle 1'!C40 -> 0 | D40: 5x10 | E40: =(G2+1)*C40 -> 0 | F40: 5x10 | G40: =(G2+1)*E40 -> 0 | H40: 5x10 | I40: =C40 -> 0 | J40: 5x10
B41: ='Cycle 1'!B41 -> Assistance 2 | C41: ='Cycle 1'!C41 -> 0 | D41: 5x10 | E41: =(G2+1)*C41 -> 0 | F41: 5x10 | G41: =(G2+1)*E41 -> 0 | H41: 5x10 | I41: =C41 -> 0 | J41: 5x10
B42: ='Cycle 1'!B42 -> Ab Exercise | C42: ='Cycle 1'!C42 -> 0 | D42: 5x13 | E42: =(G2+1)*C42 -> 0 | F42: 5x13 | G42: =(G2+1)*E42 -> 0 | H42: 5x13 | I42: =C42 -> 0 | J42: 5x13
A43: ='Cycle 1'!A43:A51 -> Friday | B43: OH Press | C43: =C7*0.4 -> 2 | D43: 5 | E43: =C43 -> 2 | F43: 5 | G43: =E43 -> 2 | H43: 5 | I43: - | J43: -
C44: =C7*0.47 -> 2 | D44: 5 | E44: =C7*0.5 -> 3 | F44: 5 | G44: =E44 -> 3 | H44: 5 | I44: - | J44: -
C45: =C7*0.55 -> 3 | D45: 3 | E45: =C7*0.6 -> 3 | F45: 3 | G45: =E45 -> 3 | H45: 3 | I45: - | J45: -
C46: =C7*0.65 -> 3 | D46: 5 | E46: =(C7*0.7) -> 4 | F46: 3 | G46: =(C7*0.75) -> 4 | H46: 5 | I46: =(C7*0.4) -> 2 | J46: 5
C47: =C7*0.75 -> 4 | D47: 5 | E47: =(C7*0.8) -> 4 | F47: 3 | G47: =(C7*0.85) -> 4 | H47: 3 | I47: =(C7*0.5) -> 3 | J47: 5
C48: =C7*0.85 -> 4 | D48: 5 | E48: =(C7*0.9) -> 5 | F48: 3 | G48: =(C7*0.95) -> 5 | H48: 1 | I48: =(C7*0.6) -> 3 | J48: 5
B49: ='Cycle 1'!B49 -> Assistance 1 | C49: ='Cycle 1'!C49 -> 0 | D49: 5x10 | E49: =(G2+1)*C49 -> 0 | F49: 5x10 | G49: =(G2+1)*E49 -> 0 | H49: 5x10 | I49: =C49 -> 0 | J49: 5x10
B50: ='Cycle 1'!B50 -> Assistance 2 | C50: ='Cycle 1'!C50 -> 0 | D50: 5x10 | E50: =(G2+1)*C50 -> 0 | F50: 5x10 | G50: =(G2+1)*E50 -> 0 | H50: 5x10 | I50: =C50 -> 0 | J50: 5x10
B51: ='Cycle 1'!B51 -> Ab Exercise | C51: ='Cycle 1'!C51 -> 0 | D51: 5x12 | E51: =(G2+1)*C51 -> 0 | F51: 5x12 | G51: =(G2+1)*E51 -> 0 | H51: 5x12 | I51: =C51 -> 0 | J51: 5x12
A52: ='Cycle 1'!A52:A57 -> Sat or Sun - ("Off")
C59: MAXES from Cycle 1
B60: Weeks | C60: 1 | D60: 2 | E60: 3 | G60: Best
B61: Squat | C61: =('Cycle 1'!C15*'Cycle 1'!D15*0.033333+'Cycle 1'!C15) -> 0 | D61: =('Cycle 1'!E15*'Cycle 1'!F15*0.033333+'Cycle 1'!E15) -> 0 | E61: =('Cycle 1'!G15*'Cycle 1'!H15*0.033333+'Cycle 1'!G15) -> 0 | G61: =MAX(C61:E61) -> 0
B62: Bench | C62: =('Cycle 1'!C24*'Cycle 1'!D24*0.033333+'Cycle 1'!C24) -> 0 | D62: =('Cycle 1'!E24*'Cycle 1'!F24*0.033333+'Cycle 1'!E24) -> 0 | E62: =('Cycle 1'!G24*'Cycle 1'!H24*0.033333+'Cycle 1'!G24) -> 0 | G62: =MAX(C62:E62) -> 0
B63: Deadlift | C63: =('Cycle 1'!C39*'Cycle 1'!D39*0.033333+'Cycle 1'!C39) -> 0 | D63: =('Cycle 1'!E39*'Cycle 1'!F39*0.033333+'Cycle 1'!E39) -> 0 | E63: =('Cycle 1'!G39*'Cycle 1'!H39*0.033333+'Cycle 1'!G39) -> 0 | G63: =MAX(C63:E63) -> 0
B64: OH Press | C64: =('Cycle 1'!C48*'Cycle 1'!D48*0.033333+'Cycle 1'!C48) -> 0 | D64: =('Cycle 1'!E48*'Cycle 1'!F48*0.033333+'Cycle 1'!E48) -> 0 | E64: =('Cycle 1'!G48*'Cycle 1'!H48*0.033333+'Cycle 1'!G48) -> 0 | G64: =MAX(C64:E64) -> 0

Sheet Cycle 3
B1: 5/3/1 Method Calculator - NO ROUNDING | E1: Cycle Start Date: | I1: Training Max usually should only increase 5lbs for upper and 10lbs for lower. You do NOT need to enter any numbers here unless you really want to manually adjust something. You will need to enter numbers below in the yellow areas and possibly other areas if you want.
B2: www.DIY-StrengthTraining.com | E2: Assistance % Increase: | G2: 0%
B3: Training Max | D3: 90% 1RM | E3: Estimated 1RM | G3: Weight Used | H3: Reps Achieved
B4: Squat: | C4: ='Cycle 2'!C4+10 -> 20 | D4: =(F4*0.9) -> 9 | E4: Squat: | F4: =(G4*H4*0.033333+G4) -> 10 | G4: =IF(G61=E61,'Cycle 2'!G15,IF(G61=D61,'Cycle 2'!E15,IF(G61=C61,'Cycle 2'!C15,"N/A"))) -> 9 | H4: =IF(G61=E61,'Cycle 2'!H15,IF(G61=D61,'Cycle 2'!F15,IF(G61=C61,'Cycle 2'!D15,"N/A"))) -> 5
B5: Bench: | C5: ='Cycle 2'!C5+5 -> 10 | D5: =(F5*0.9) -> 4 | E5: Bench: | F5: =(G5*H5*0.033333+G5) -> 5 | G5: =IF(G62=E62,'Cycle 2'!G24,IF(G62=D62,'Cycle 2'!E24,IF(G62=C62,'Cycle 2'!C24,"N/A"))) -> 4 | H5: =IF(G62=E62,'Cycle 2'!H24,IF(G62=D62,'Cycle 2'!F24,IF(G62=C62,'Cycle 2'!D24,"N/A"))) -> 5
B6: Deadlift: | C6: ='Cycle 2'!C6+10 -> 20 | D6: =(F6*0.9) -> 9 | E6: Deadlift: | F6: =(G6*H6*0.033333+G6) -> 10 | G6: =IF(G63=E63,'Cycle 2'!G39,IF(G63=D63,'Cycle 2'!E39,IF(G63=C63,'Cycle 2'!C39,"N/A"))) -> 9 | H6: =IF(G63=E63,'Cycle 2'!H39,IF(G63=D63,'Cycle 2'!F39,IF(G63=C63,'Cycle 2'!D39,"N/A"))) -> 5
B7: OH Press: | C7: ='Cycle 2'!C7+5 -> 10 | D7: =(F7*0.9) -> 4 | E7: OH Press: | F7: =(G7*H7*0.033333+G7) -> 5 | G7: =IF(G64=E64,'Cycle 2'!G48,IF(G64=D64,'Cycle 2'!E48,IF(G64=C64,'Cycle 2'!C48,"N/A"))) -> 4 | H7: =IF(G64=E64,'Cycle 2'!H48,IF(G64=D64,'Cycle 2'!F48,IF(G64=C64,'Cycle 2'!D48,"N/A"))) -> 5
B8: Exercise | C8: Week 1 | E8: Week 2 | G8: Week 3 | I8: Week 4 - DELOAD
C9: Weight | D9: Reps | E9: Weight | F9: Reps | G9: Weight | H9: Reps | I9: Weight | J9: Reps
A10: ='Cycle 2'!A10:A18 -> Monday | B10: Squat | C10: =C4*0.4 -> 8 | D10: 5 | E10: =C10 -> 8 | F10: 5 | G10: =E10 -> 8 | H10: 5 | I10: - | J10: -
C11: =C4*0.47 -> 9 | D11: 5 | E11: =C4*0.5 -> 10 | F11: 5 | G11: =E11 -> 10 | H11: 5 | I11: - | J11: -
C12: =C4*0.55 -> 11 | D12: 3 | E12: =C4*0.6 -> 12 | F12: 3 | G12: =E12 -> 12 | H12: 3 | I12: - | J12: -
C13: =C4*0.65 -> 13 | D13: 5 | E13: =(C4*0.7) -> 14 | F13: 3 | G13: =(C4*0.75) -> 15 | H13: 5 | I13: =(C4*0.4) -> 8 | J13: 5
C14: =C4*0.75 -> 15 | D14: 5 | E14: =(C4*0.8) -> 16 | F14: 3 | G14: =(C4*0.85) -> 17 | H14: 3 | I14: =(C4*0.5) -> 10 | J14: 5
C15: =C4*0.85 -> 17 | D15: 5 | E15: =(C4*0.9) -> 18 | F15: 3 | G15: =(C4*0.95) -> 19 | H15: 1 | I15: =(C4*0.6) -> 12 | J15: 5
B16: ='Cycle 2'!B16 -> Assistance 1 | C16: ='Cycle 2'!C16 -> 0 | D16: 5x10 | E16: =(G2+1)*C16 -> 0 | F16: 5x10 | G16: =(G2+1)*E16 -> 0 | H16: 5x10 | I16: =C16 -> 0 | J16: 5x10
B17: ='Cycle 2'!B17 -> Assistance 2 | C17: ='Cycle 2'!C17 -> 0 | D17: 5x12 | E17: =(G2+1)*C17 -> 0 | F17: 5x12 | G17: =(G2+1)*E17 -> 0 | H17: 5x12 | I17: =C17 -> 0 | J17: 5x12
B18: ='Cycle 2'!B18 -> Ab Exercise | C18: ='Cycle 2'!C18 -> 0 | D18: 5x13 | E18: =(G2+1)*C18 -> 0 | F18: 5x13 | G18: =(G2+1)*E18 -> 0 | H18: 5x13 | I18: =C18 -> 0 | J18: 5x13
A19: ='Cycle 2'!A19:A27 -> Tuesday | B19: Bench | C19: =C5*0.4 -> 4 | D19: 5 | E19: =C19 -> 4 | F19: 5 | G19: =E19 -> 4 | H19: 5 | I19: - | J19: -
C20: =C5*0.47 -> 5 | D20: 5 | E20: =C5*0.5 -> 5 | F20: 5 | G20: =E20 -> 5 | H20: 5 | I20: - | J20: -
C21: =C5*0.55 -> 6 | D21: 3 | E21: =C5*0.6 -> 6 | F21: 3 | G21: =E21 -> 6 | H21: 3 | I21: - | J21: -
C22: =C5*0.65 -> 7 | D22: 5 | E22: =(C5*0.7) -> 7 | F22: 3 | G22: =(C5*0.75) -> 8 | H22: 5 | I22: =(C5*0.4) -> 4 | J22: 5
C23: =C5*0.75 -> 8 | D23: 5 | E23: =(C5*0.8) -> 8 | F23: 3 | G23: =(C5*0.85) -> 9 | H23: 3 | I23: =(C5*0.5) -> 5 | J23: 5
C24: =C5*0.85 -> 9 | D24: 5 | E24: =(C5*0.9) -> 9 | F24: 3 | G24: =(C5*0.95) -> 10 | H24: 1 | I24: =(C5*0.6) -> 6 | J24: 5
B25: ='Cycle 2'!B25 -> Assistance 1 | C25: ='Cycle 2'!C25 -> 0 | D25: 5x10 | E25: =(G2+1)*C25 -> 0 | F25: 5x10 | G25: =(G2+1)*E25 -> 0 | H25: 5x10 | I25: =C25 -> 0 | J25: 5x10
B26: ='Cycle 2'!B26 -> Assistance 2 | C26: ='Cycle 2'!C26 -> 0 | D26: 5x10 | E26: =(G2+1)*C26 -> 0 | F26: 5x10 | G26: =(G2+1)*E26 -> 0 | H26: 5x10 | I26: =C26 -> 0 | J26: 5x10
B27: ='Cycle 2'!B27 -> Ab Exercise | C27: ='Cycle 2'!C27 -> 0 | E27: =(G2+1)*C27 -> 0 | G27: =(G2+1)*E27 -> 0 | I27: =C27 -> 0
A28: ='Cycle 2'!A28:A33 -> Wed - ("Off")
A34: ='Cycle 2'!A34:A42 -> Thursday | B34: Deadlift | C34: =C6*0.4 -> 8 | D34: 5 | E34: =C34 -> 8 | F34: 5 | G34: =E34 -> 8 | H34: 5 | I34: - | J34: -
C35: =C6*0.47 -> 9 | D35: 5 | E35: =C6*0.5 -> 10 | F35: 5 | G35: =E35 -> 10 | H35: 5 | I35: - | J35: -
C36: =C6*0.55 -> 11 | D36: 3 | E36: =C6*0.6 -> 12 | F36: 3 | G36: =E36 -> 12 | H36: 3 | I36: - | J36: -
C37: =C6*0.65 -> 13 | D37: 5 | E37: =(C6*0.7) -> 14 | F37: 3 | G37: =(C6*0.75) -> 15 | H37: 5 | I37: =(C6*0.4) -> 8 | J37: 5
C38: =C6*0.75 -> 15 | D38: 5 | E38: =(C6*0.8) -> 16 | F38: 3 | G38: =(C6*0.85) -> 17 | H38: 3 | I38: =(C6*0.5) -> 10 | J38: 5
C39: =C6*0.85 -> 17 | D39: 5 | E39: =(C6*0.9) -> 18 | F39: 3 | G39: =(C6*0.95) -> 19 | H39: 1 | I39: =(C6*0.6) -> 12 | J39: 5
B40: ='Cycle 2'!B40 -> Assistance 1 | C40: ='Cycle 2'!C40 -> 0 | D40: 5x10 | E40: =(G2+1)*C40 -> 0 | F40: 5x10 | G40: =(G2+1)*E40 -> 0 | H40: 5x10 | I40: =C40 -> 0 | J40: 5x10
B41: ='Cycle 2'!B41 -> Assistance 2 | C41: ='Cycle 2'!C41 -> 0 | D41: 5x10 | E41: =(G2+1)*C41 -> 0 | F41: 5x10 | G41: =(G2+1)*E41 -> 0 | H41: 5x10 | I41: =C41 -> 0 | J41: 5x10
B42: ='Cycle 2'!B42 -> Ab Exercise | C42: ='Cycle 2'!C42 -> 0 | D42: 5x13 | E42: =(G2+1)*C42 -> 0 | F42: 5x13 | G42: =(G2+1)*E42 -> 0 | H42: 5x13 | I42: =C42 -> 0 | J42: 5x13
A43: ='Cycle 2'!A43:A51 -> Friday | B43: OH Press | C43: =C7*0.4 -> 4 | D43: 5 | E43: =C43 -> 4 | F43: 5 | G43: =E43 -> 4 | H43: 5 | I43: - | J43: -
C44: =C7*0.47 -> 5 | D44: 5 | E44: =C7*0.5 -> 5 | F44: 5 | G44: =E44 -> 5 | H44: 5 | I44: - | J44: -
C45: =C7*0.55 -> 6 | D45: 3 | E45: =C7*0.6 -> 6 | F45: 3 | G45: =E45 -> 6 | H45: 3 | I45: - | J45: -
C46: =C7*0.65 -> 7 | D46: 5 | E46: =(C7*0.7) -> 7 | F46: 3 | G46: =(C7*0.75) -> 8 | H46: 5 | I46: =(C7*0.4) -> 4 | J46: 5
C47: =C7*0.75 -> 8 | D47: 5 | E47: =(C7*0.8) -> 8 | F47: 3 | G47: =(C7*0.85) -> 9 | H47: 3 | I47: =(C7*0.5) -> 5 | J47: 5
C48: =C7*0.85 -> 9 | D48: 5 | E48: =(C7*0.9) -> 9 | F48: 3 | G48: =(C7*0.95) -> 10 | H48: 1 | I48: =(C7*0.6) -> 6 | J48: 5
B49: ='Cycle 2'!B49 -> Assistance 1 | C49: ='Cycle 2'!C49 -> 0 | D49: 5x10 | E49: =(G2+1)*C49 -> 0 | F49: 5x10 | G49: =(G2+1)*E49 -> 0 | H49: 5x10 | I49: =C49 -> 0 | J49: 5x10
B50: ='Cycle 2'!B50 -> Assistance 2 | C50: ='Cycle 2'!C50 -> 0 | D50: 5x10 | E50: =(G2+1)*C50 -> 0 | F50: 5x10 | G50: =(G2+1)*E50 -> 0 | H50: 5x10 | I50: =C50 -> 0 | J50: 5x10
B51: ='Cycle 2'!B51 -> Ab Exercise | C51: ='Cycle 2'!C51 -> 0 | D51: 5x12 | E51: =(G2+1)*C51 -> 0 | F51: 5x12 | G51: =(G2+1)*E51 -> 0 | H51: 5x12 | I51: =C51 -> 0 | J51: 5x12
A52: ='Cycle 2'!A52:A57 -> Sat or Sun - ("Off")
C59: MAXES from Cycle 2
B60: Weeks | C60: 1 | D60: 2 | E60: 3 | G60: Best
B61: Squat | C61: =('Cycle 2'!C15*'Cycle 2'!D15*0.033333+'Cycle 2'!C15) -> 10 | D61: =('Cycle 2'!E15*'Cycle 2'!F15*0.033333+'Cycle 2'!E15) -> 10 | E61: =('Cycle 2'!G15*'Cycle 2'!H15*0.033333+'Cycle 2'!G15) -> 10 | G61: =MAX(C61:E61) -> 10
B62: Bench | C62: =('Cycle 2'!C24*'Cycle 2'!D24*0.033333+'Cycle 2'!C24) -> 5 | D62: =('Cycle 2'!E24*'Cycle 2'!F24*0.033333+'Cycle 2'!E24) -> 5 | E62: =('Cycle 2'!G24*'Cycle 2'!H24*0.033333+'Cycle 2'!G24) -> 5 | G62: =MAX(C62:E62) -> 5
B63: Deadlift | C63: =('Cycle 2'!C39*'Cycle 2'!D39*0.033333+'Cycle 2'!C39) -> 10 | D63: =('Cycle 2'!E39*'Cycle 2'!F39*0.033333+'Cycle 2'!E39) -> 10 | E63: =('Cycle 2'!G39*'Cycle 2'!H39*0.033333+'Cycle 2'!G39) -> 10 | G63: =MAX(C63:E63) -> 10
B64: OH Press | C64: =('Cycle 2'!C48*'Cycle 2'!D48*0.033333+'Cycle 2'!C48) -> 5 | D64: =('Cycle 2'!E48*'Cycle 2'!F48*0.033333+'Cycle 2'!E48) -> 5 | E64: =('Cycle 2'!G48*'Cycle 2'!H48*0.033333+'Cycle 2'!G48) -> 5 | G64: =MAX(C64:E64) -> 5

Sheet Cycle 4
B1: 5/3/1 Method Calculator - NO ROUNDING | E1: Cycle Start Date: | I1: Training Max usually should only increase 5lbs for upper and 10lbs for lower. You do NOT need to enter any numbers here unless you really want to manually adjust something. You will need to enter numbers below in the yellow areas and possibly other areas if you want.
B2: www.DIY-StrengthTraining.com | E2: Assistance % Increase: | G2: 0%
B3: Training Max | D3: 90% 1RM | E3: Estimated 1RM | G3: Weight Used | H3: Reps Achieved
B4: Squat: | C4: ='Cycle 3'!C4+10 -> 30 | D4: =(F4*0.9) -> 18 | E4: Squat: | F4: =(G4*H4*0.033333+G4) -> 20 | G4: =IF(G61=E61,'Cycle 3'!G15,IF(G61=D61,'Cycle 3'!E15,IF(G61=C61,'Cycle 3'!C15,"N/A"))) -> 17 | H4: =IF(G61=E61,'Cycle 3'!H15,IF(G61=D61,'Cycle 3'!F15,IF(G61=C61,'Cycle 3'!D15,"N/A"))) -> 5
B5: Bench: | C5: ='Cycle 3'!C5+5 -> 15 | D5: =(F5*0.9) -> 9 | E5: Bench: | F5: =(G5*H5*0.033333+G5) -> 10 | G5: =IF(G62=E62,'Cycle 3'!G24,IF(G62=D62,'Cycle 3'!E24,IF(G62=C62,'Cycle 3'!C24,"N/A"))) -> 9 | H5: =IF(G62=E62,'Cycle 3'!H24,IF(G62=D62,'Cycle 3'!F24,IF(G62=C62,'Cycle 3'!D24,"N/A"))) -> 5
B6: Deadlift: | C6: ='Cycle 3'!C6+10 -> 30 | D6: =(F6*0.9) -> 18 | E6: Deadlift: | F6: =(G6*H6*0.033333+G6) -> 20 | G6: =IF(G63=E63,'Cycle 3'!G39,IF(G63=D63,'Cycle 3'!E39,IF(G63=C63,'Cycle 3'!C39,"N/A"))) -> 17 | H6: =IF(G63=E63,'Cycle 3'!H39,IF(G63=D63,'Cycle 3'!F39,IF(G63=C63,'Cycle 3'!D39,"N/A"))) -> 5
B7: OH Press: | C7: ='Cycle 3'!C7+5 -> 15 | D7: =(F7*0.9) -> 9 | E7: OH Press: | F7: =(G7*H7*0.033333+G7) -> 10 | G7: =IF(G64=E64,'Cycle 3'!G48,IF(G64=D64,'Cycle 3'!E48,IF(G64=C64,'Cycle 3'!C48,"N/A"))) -> 9 | H7: =IF(G64=E64,'Cycle 3'!H48,IF(G64=D64,'Cycle 3'!F48,IF(G64=C64,'Cycle 3'!D48,"N/A"))) -> 5
B8: Exercise | C8: Week 1 | E8: Week 2 | G8: Week 3 | I8: Week 4 - DELOAD
C9: Weight | D9: Reps | E9: Weight | F9: Reps | G9: Weight | H9: Reps | I9: Weight | J9: Reps
A10: ='Cycle 3'!A10:A18 -> Monday | B10: Squat | C10: =C4*0.4 -> 12 | D10: 5 | E10: =C10 -> 12 | F10: 5 | G10: =E10 -> 12 | H10: 5 | I10: - | J10: -
C11: =C4*0.47 -> 14 | D11: 5 | E11: =C4*0.5 -> 15 | F11: 5 | G11: =E11 -> 15 | H11: 5 | I11: - | J11: -
C12: =C4*0.55 -> 17 | D12: 3 | E12: =C4*0.6 -> 18 | F12: 3 | G12: =E12 -> 18 | H12: 3 | I12: - | J12: -
C13: =C4*0.65 -> 20 | D13: 5 | E13: =(C4*0.7) -> 21 | F13: 3 | G13: =(C4*0.75) -> 23 | H13: 5 | I13: =(C4*0.4) -> 12 | J13: 5
C14: =C4*0.75 -> 23 | D14: 5 | E14: =(C4*0.8) -> 24 | F14: 3 | G14: =(C4*0.85) -> 26 | H14: 3 | I14: =(C4*0.5) -> 15 | J14: 5
C15: =C4*0.85 -> 26 | D15: 5 | E15: =(C4*0.9) -> 27 | F15: 3 | G15: =(C4*0.95) -> 29 | H15: 1 | I15: =(C4*0.6) -> 18 | J15: 5
B16: ='Cycle 3'!B16 -> Assistance 1 | C16: ='Cycle 3'!C16 -> 0 | D16: 5x10 | E16: =(G2+1)*C16 -> 0 | F16: 5x10 | G16: =(G2+1)*E16 -> 0 | H16: 5x10 | I16: =C16 -> 0 | J16: 5x10
B17: ='Cycle 3'!B17 -> Assistance 2 | C17: ='Cycle 3'!C17 -> 0 | D17: 5x12 | E17: =(G2+1)*C17 -> 0 | F17: 5x12 | G17: =(G2+1)*E17 -> 0 | H17: 5x12 | I17: =C17 -> 0 | J17: 5x12
B18: ='Cycle 3'!B18 -> Ab Exercise | C18: ='Cycle 3'!C18 -> 0 | D18: 5x13 | E18: =(G2+1)*C18 -> 0 | F18: 5x13 | G18: =(G2+1)*E18 -> 0 | H18: 5x13 | I18: =C18 -> 0 | J18: 5x13
A19: ='Cycle 3'!A19:A27 -> Tuesday | B19: Bench | C19: =C5*0.4 -> 6 | D19: 5 | E19: =C19 -> 6 | F19: 5 | G19: =E19 -> 6 | H19: 5 | I19: - | J19: -
C20: =C5*0.47 -> 7 | D20: 5 | E20: =C5*0.5 -> 8 | F20: 5 | G20: =E20 -> 8 | H20: 5 | I20: - | J20: -
C21: =C5*0.55 -> 8 | D21: 3 | E21: =C5*0.6 -> 9 | F21: 3 | G21: =E21 -> 9 | H21: 3 | I21: - | J21: -
C22: =C5*0.65 -> 10 | D22: 5 | E22: =(C5*0.7) -> 11 | F22: 3 | G22: =(C5*0.75) -> 11 | H22: 5 | I22: =(C5*0.4) -> 6 | J22: 5
C23: =C5*0.75 -> 11 | D23: 5 | E23: =(C5*0.8) -> 12 | F23: 3 | G23: =(C5*0.85) -> 13 | H23: 3 | I23: =(C5*0.5) -> 8 | J23: 5
C24: =C5*0.85 -> 13 | D24: 5 | E24: =(C5*0.9) -> 14 | F24: 3 | G24: =(C5*0.95) -> 14 | H24: 1 | I24: =(C5*0.6) -> 9 | J24: 5
B25: ='Cycle 3'!B25 -> Assistance 1 | C25: ='Cycle 3'!C25 -> 0 | D25: 5x10 | E25: =(G2+1)*C25 -> 0 | F25: 5x10 | G25: =(G2+1)*E25 -> 0 | H25: 5x10 | I25: =C25 -> 0 | J25: 5x10
B26: ='Cycle 3'!B26 -> Assistance 2 | C26: ='Cycle 3'!C26 -> 0 | D26: 5x10 | E26: =(G2+1)*C26 -> 0 | F26: 5x10 | G26: =(G2+1)*E26 -> 0 | H26: 5x10 | I26: =C26 -> 0 | J26: 5x10
B27: ='Cycle 3'!B27 -> Ab Exercise | C27: ='Cycle 3'!C27 -> 0 | E27: =(G2+1)*C27 -> 0 | G27: =(G2+1)*E27 -> 0 | I27: =C27 -> 0
A28: ='Cycle 3'!A28:A33 -> Wed - ("Off")
A34: ='Cycle 3'!A34:A42 -> Thursday | B34: Deadlift | C34: =C6*0.4 -> 12 | D34: 5 | E34: =C34 -> 12 | F34: 5 | G34: =E34 -> 12 | H34: 5 | I34: - | J34: -
C35: =C6*0.47 -> 14 | D35: 5 | E35: =C6*0.5 -> 15 | F35: 5 | G35: =E35 -> 15 | H35: 5 | I35: - | J35: -
C36: =C6*0.55 -> 17 | D36: 3 | E36: =C6*0.6 -> 18 | F36: 3 | G36: =E36 -> 18 | H36: 3 | I36: - | J36: -
C37: =C6*0.65 -> 20 | D37: 5 | E37: =(C6*0.7) -> 21 | F37: 3 | G37: =(C6*0.75) -> 23 | H37: 5 | I37: =(C6*0.4) -> 12 | J37: 5
C38: =C6*0.75 -> 23 | D38: 5 | E38: =(C6*0.8) -> 24 | F38: 3 | G38: =(C6*0.85) -> 26 | H38: 3 | I38: =(C6*0.5) -> 15 | J38: 5
C39: =C6*0.85 -> 26 | D39: 5 | E39: =(C6*0.9) -> 27 | F39: 3 | G39: =(C6*0.95) -> 29 | H39: 1 | I39: =(C6*0.6) -> 18 | J39: 5
B40: ='Cycle 3'!B40 -> Assistance 1 | C40: ='Cycle 3'!C40 -> 0 | D40: 5x10 | E40: =(G2+1)*C40 -> 0 | F40: 5x10 | G40: =(G2+1)*E40 -> 0 | H40: 5x10 | I40: =C40 -> 0 | J40: 5x10
B41: ='Cycle 3'!B41 -> Assistance 2 | C41: ='Cycle 3'!C41 -> 0 | D41: 5x10 | E41: =(G2+1)*C41 -> 0 | F41: 5x10 | G41: =(G2+1)*E41 -> 0 | H41: 5x10 | I41: =C41 -> 0 | J41: 5x10
B42: ='Cycle 3'!B42 -> Ab Exercise | C42: ='Cycle 3'!C42 -> 0 | D42: 5x13 | E42: =(G2+1)*C42 -> 0 | F42: 5x13 | G42: =(G2+1)*E42 -> 0 | H42: 5x13 | I42: =C42 -> 0 | J42: 5x13
A43: ='Cycle 3'!A43:A51 -> Friday | B43: OH Press | C43: =C7*0.4 -> 6 | D43: 5 | E43: =C43 -> 6 | F43: 5 | G43: =E43 -> 6 | H43: 5 | I43: - | J43: -
C44: =C7*0.47 -> 7 | D44: 5 | E44: =C7*0.5 -> 8 | F44: 5 | G44: =E44 -> 8 | H44: 5 | I44: - | J44: -
C45: =C7*0.55 -> 8 | D45: 3 | E45: =C7*0.6 -> 9 | F45: 3 | G45: =E45 -> 9 | H45: 3 | I45: - | J45: -
C46: =C7*0.65 -> 10 | D46: 5 | E46: =(C7*0.7) -> 11 | F46: 3 | G46: =(C7*0.75) -> 11 | H46: 5 | I46: =(C7*0.4) -> 6 | J46: 5
C47: =C7*0.75 -> 11 | D47: 5 | E47: =(C7*0.8) -> 12 | F47: 3 | G47: =(C7*0.85) -> 13 | H47: 3 | I47: =(C7*0.5) -> 8 | J47: 5
C48: =C7*0.85 -> 13 | D48: 5 | E48: =(C7*0.9) -> 14 | F48: 3 | G48: =(C7*0.95) -> 14 | H48: 1 | I48: =(C7*0.6) -> 9 | J48: 5
B49: ='Cycle 3'!B49 -> Assistance 1 | C49: ='Cycle 3'!C49 -> 0 | D49: 5x10 | E49: =(G2+1)*C49 -> 0 | F49: 5x10 | G49: =(G2+1)*E49 -> 0 | H49: 5x10 | I49: =C49 -> 0 | J49: 5x10
B50: ='Cycle 3'!B50 -> Assistance 2 | C50: ='Cycle 3'!C50 -> 0 | D50: 5x10 | E50: =(G2+1)*C50 -> 0 | F50: 5x10 | G50: =(G2+1)*E50 -> 0 | H50: 5x10 | I50: =C50 -> 0 | J50: 5x10
B51: ='Cycle 3'!B51 -> Ab Exercise | C51: ='Cycle 3'!C51 -> 0 | D51: 5x12 | E51: =(G2+1)*C51 -> 0 | F51: 5x12 | G51: =(G2+1)*E51 -> 0 | H51: 5x12 | I51: =C51 -> 0 | J51: 5x12
A52: ='Cycle 3'!A52:A57 -> Sat or Sun - ("Off")
C59: MAXES from Cycle 3
B60: Weeks | C60: 1 | D60: 2 | E60: 3 | G60: Best
B61: Squat | C61: =('Cycle 3'!C15*'Cycle 3'!D15*0.033333+'Cycle 3'!C15) -> 20 | D61: =('Cycle 3'!E15*'Cycle 3'!F15*0.033333+'Cycle 3'!E15) -> 20 | E61: =('Cycle 3'!G15*'Cycle 3'!H15*0.033333+'Cycle 3'!G15) -> 20 | G61: =MAX(C61:E61) -> 20
B62: Bench | C62: =('Cycle 3'!C24*'Cycle 3'!D24*0.033333+'Cycle 3'!C24) -> 10 | D62: =('Cycle 3'!E24*'Cycle 3'!F24*0.033333+'Cycle 3'!E24) -> 10 | E62: =('Cycle 3'!G24*'Cycle 3'!H24*0.033333+'Cycle 3'!G24) -> 10 | G62: =MAX(C62:E62) -> 10
B63: Deadlift | C63: =('Cycle 3'!C39*'Cycle 3'!D39*0.033333+'Cycle 3'!C39) -> 20 | D63: =('Cycle 3'!E39*'Cycle 3'!F39*0.033333+'Cycle 3'!E39) -> 20 | E63: =('Cycle 3'!G39*'Cycle 3'!H39*0.033333+'Cycle 3'!G39) -> 20 | G63: =MAX(C63:E63) -> 20
B64: OH Press | C64: =('Cycle 3'!C48*'Cycle 3'!D48*0.033333+'Cycle 3'!C48) -> 10 | D64: =('Cycle 3'!E48*'Cycle 3'!F48*0.033333+'Cycle 3'!E48) -> 10 | E64: =('Cycle 3'!G48*'Cycle 3'!H48*0.033333+'Cycle 3'!G48) -> 10 | G64: =MAX(C64:E64) -> 10

Sheet Cycle 5
B1: 5/3/1 Method Calculator - NO ROUNDING | E1: Cycle Start Date: | I1: Training Max usually should only increase 5lbs for upper and 10lbs for lower. You do NOT need to enter any numbers here unless you really want to manually adjust something. You will need to enter numbers below in the yellow areas and possibly other areas if you want.
B2: www.DIY-StrengthTraining.com | E2: Assistance % Increase: | G2: 0%
B3: Training Max | D3: 90% 1RM | E3: Estimated 1RM | G3: Weight Used | H3: Reps Achieved
B4: Squat: | C4: ='Cycle 4'!C4+10 -> 40 | D4: =(F4*0.9) -> 27 | E4: Squat: | F4: =(G4*H4*0.033333+G4) -> 30 | G4: =IF(G61=E61,'Cycle 4'!G15,IF(G61=D61,'Cycle 4'!E15,IF(G61=C61,'Cycle 4'!C15,"N/A"))) -> 26 | H4: =IF(G61=E61,'Cycle 4'!H15,IF(G61=D61,'Cycle 4'!F15,IF(G61=C61,'Cycle 4'!D15,"N/A"))) -> 5
B5: Bench: | C5: ='Cycle 4'!C5+5 -> 20 | D5: =(F5*0.9) -> 13 | E5: Bench: | F5: =(G5*H5*0.033333+G5) -> 15 | G5: =IF(G62=E62,'Cycle 4'!G24,IF(G62=D62,'Cycle 4'!E24,IF(G62=C62,'Cycle 4'!C24,"N/A"))) -> 13 | H5: =IF(G62=E62,'Cycle 4'!H24,IF(G62=D62,'Cycle 4'!F24,IF(G62=C62,'Cycle 4'!D24,"N/A"))) -> 5
B6: Deadlift: | C6: ='Cycle 4'!C6+10 -> 40 | D6: =(F6*0.9) -> 27 | E6: Deadlift: | F6: =(G6*H6*0.033333+G6) -> 30 | G6: =IF(G63=E63,'Cycle 4'!G39,IF(G63=D63,'Cycle 4'!E39,IF(G63=C63,'Cycle 4'!C39,"N/A"))) -> 26 | H6: =IF(G63=E63,'Cycle 4'!H39,IF(G63=D63,'Cycle 4'!F39,IF(G63=C63,'Cycle 4'!D39,"N/A"))) -> 5
B7: OH Press: | C7: ='Cycle 4'!C7+5 -> 20 | D7: =(F7*0.9) -> 13 | E7: OH Press: | F7: =(G7*H7*0.033333+G7) -> 15 | G7: =IF(G64=E64,'Cycle 4'!G48,IF(G64=D64,'Cycle 4'!E48,IF(G64=C64,'Cycle 4'!C48,"N/A"))) -> 13 | H7: =IF(G64=E64,'Cycle 4'!H48,IF(G64=D64,'Cycle 4'!F48,IF(G64=C64,'Cycle 4'!D48,"N/A"))) -> 5
B8: Exercise | C8: Week 1 | E8: Week 2 | G8: Week 3 | I8: Week 4 - DELOAD
C9: Weight | D9: Reps | E9: Weight | F9: Reps | G9: Weight | H9: Reps | I9: Weight | J9: Reps
A10: ='Cycle 4'!A10:A18 -> Monday | B10: Squat | C10: =C4*0.4 -> 16 | D10: 5 | E10: =C10 -> 16 | F10: 5 | G10: =E10 -> 16 | H10: 5 | I10: - | J10: -
C11: =C4*0.47 -> 19 | D11: 5 | E11: =C4*0.5 -> 20 | F11: 5 | G11: =E11 -> 20 | H11: 5 | I11: - | J11: -
C12: =C4*0.55 -> 22 | D12: 3 | E12: =C4*0.6 -> 24 | F12: 3 | G12: =E12 -> 24 | H12: 3 | I12: - | J12: -
C13: =C4*0.65 -> 26 | D13: 5 | E13: =(C4*0.7) -> 28 | F13: 3 | G13: =(C4*0.75) -> 30 | H13: 5 | I13: =(C4*0.4) -> 16 | J13: 5
C14: =C4*0.75 -> 30 | D14: 5 | E14: =(C4*0.8) -> 32 | F14: 3 | G14: =(C4*0.85) -> 34 | H14: 3 | I14: =(C4*0.5) -> 20 | J14: 5
C15: =C4*0.85 -> 34 | D15: 5 | E15: =(C4*0.9) -> 36 | F15: 3 | G15: =(C4*0.95) -> 38 | H15: 1 | I15: =(C4*0.6) -> 24 | J15: 5
B16: ='Cycle 4'!B16 -> Assistance 1 | C16: ='Cycle 4'!C16 -> 0 | D16: 5x10 | E16: =(G2+1)*C16 -> 0 | F16: 5x10 | G16: =(G2+1)*E16 -> 0 | H16: 5x10 | I16: =C16 -> 0 | J16: 5x10
B17: ='Cycle 4'!B17 -> Assistance 2 | C17: ='Cycle 4'!C17 -> 0 | D17: 5x12 | E17: =(G2+1)*C17 -> 0 | F17: 5x12 | G17: =(G2+1)*E17 -> 0 | H17: 5x12 | I17: =C17 -> 0 | J17: 5x12
B18: ='Cycle 4'!B18 -> Ab Exercise | C18: ='Cycle 4'!C18 -> 0 | D18: 5x13 | E18: =(G2+1)*C18 -> 0 | F18: 5x13 | G18: =(G2+1)*E18 -> 0 | H18: 5x13 | I18: =C18 -> 0 | J18: 5x13
A19: ='Cycle 4'!A19:A27 -> Tuesday | B19: Bench | C19: =C5*0.4 -> 8 | D19: 5 | E19: =C19 -> 8 | F19: 5 | G19: =E19 -> 8 | H19: 5 | I19: - | J19: -
C20: =C5*0.47 -> 9 | D20: 5 | E20: =C5*0.5 -> 10 | F20: 5 | G20: =E20 -> 10 | H20: 5 | I20: - | J20: -
C21: =C5*0.55 -> 11 | D21: 3 | E21: =C5*0.6 -> 12 | F21: 3 | G21: =E21 -> 12 | H21: 3 | I21: - | J21: -
C22: =C5*0.65 -> 13 | D22: 5 | E22: =(C5*0.7) -> 14 | F22: 3 | G22: =(C5*0.75) -> 15 | H22: 5 | I22: =(C5*0.4) -> 8 | J22: 5
C23: =C5*0.75 -> 15 | D23: 5 | E23: =(C5*0.8) -> 16 | F23: 3 | G23: =(C5*0.85) -> 17 | H23: 3 | I23: =(C5*0.5) -> 10 | J23: 5
C24: =C5*0.85 -> 17 | D24: 5 | E24: =(C5*0.9) -> 18 | F24: 3 | G24: =(C5*0.95) -> 19 | H24: 1 | I24: =(C5*0.6) -> 12 | J24: 5
B25: ='Cycle 4'!B25 -> Assistance 1 | C25: ='Cycle 4'!C25 -> 0 | D25: 5x10 | E25: =(G2+1)*C25 -> 0 | F25: 5x10 | G25: =(G2+1)*E25 -> 0 | H25: 5x10 | I25: =C25 -> 0 | J25: 5x10
B26: ='Cycle 4'!B26 -> Assistance 2 | C26: ='Cycle 4'!C26 -> 0 | D26: 5x10 | E26: =(G2+1)*C26 -> 0 | F26: 5x10 | G26: =(G2+1)*E26 -> 0 | H26: 5x10 | I26: =C26 -> 0 | J26: 5x10
B27: ='Cycle 4'!B27 -> Ab Exercise | C27: ='Cycle 4'!C27 -> 0 | E27: =(G2+1)*C27 -> 0 | G27: =(G2+1)*E27 -> 0 | I27: =C27 -> 0
A28: ='Cycle 4'!A28:A33 -> Wed - ("Off")
A34: ='Cycle 4'!A34:A42 -> Thursday | B34: Deadlift | C34: =C6*0.4 -> 16 | D34: 5 | E34: =C34 -> 16 | F34: 5 | G34: =E34 -> 16 | H34: 5 | I34: - | J34: -
C35: =C6*0.47 -> 19 | D35: 5 | E35: =C6*0.5 -> 20 | F35: 5 | G35: =E35 -> 20 | H35: 5 | I35: - | J35: -
C36: =C6*0.55 -> 22 | D36: 3 | E36: =C6*0.6 -> 24 | F36: 3 | G36: =E36 -> 24 | H36: 3 | I36: - | J36: -
C37: =C6*0.65 -> 26 | D37: 5 | E37: =(C6*0.7) -> 28 | F37: 3 | G37: =(C6*0.75) -> 30 | H37: 5 | I37: =(C6*0.4) -> 16 | J37: 5
C38: =C6*0.75 -> 30 | D38: 5 | E38: =(C6*0.8) -> 32 | F38: 3 | G38: =(C6*0.85) -> 34 | H38: 3 | I38: =(C6*0.5) -> 20 | J38: 5
C39: =C6*0.85 -> 34 | D39: 5 | E39: =(C6*0.9) -> 36 | F39: 3 | G39: =(C6*0.95) -> 38 | H39: 1 | I39: =(C6*0.6) -> 24 | J39: 5
B40: ='Cycle 4'!B40 -> Assistance 1 | C40: ='Cycle 4'!C40 -> 0 | D40: 5x10 | E40: =(G2+1)*C40 -> 0 | F40: 5x10 | G40: =(G2+1)*E40 -> 0 | H40: 5x10 | I40: =C40 -> 0 | J40: 5x10
B41: ='Cycle 4'!B41 -> Assistance 2 | C41: ='Cycle 4'!C41 -> 0 | D41: 5x10 | E41: =(G2+1)*C41 -> 0 | F41: 5x10 | G41: =(G2+1)*E41 -> 0 | H41: 5x10 | I41: =C41 -> 0 | J41: 5x10
B42: ='Cycle 4'!B42 -> Ab Exercise | C42: ='Cycle 4'!C42 -> 0 | D42: 5x13 | E42: =(G2+1)*C42 -> 0 | F42: 5x13 | G42: =(G2+1)*E42 -> 0 | H42: 5x13 | I42: =C42 -> 0 | J42: 5x13
A43: ='Cycle 4'!A43:A51 -> Friday | B43: OH Press | C43: =C7*0.4 -> 8 | D43: 5 | E43: =C43 -> 8 | F43: 5 | G43: =E43 -> 8 | H43: 5 | I43: - | J43: -
C44: =C7*0.47 -> 9 | D44: 5 | E44: =C7*0.5 -> 10 | F44: 5 | G44: =E44 -> 10 | H44: 5 | I44: - | J44: -
C45: =C7*0.55 -> 11 | D45: 3 | E45: =C7*0.6 -> 12 | F45: 3 | G45: =E45 -> 12 | H45: 3 | I45: - | J45: -
C46: =C7*0.65 -> 13 | D46: 5 | E46: =(C7*0.7) -> 14 | F46: 3 | G46: =(C7*0.75) -> 15 | H46: 5 | I46: =(C7*0.4) -> 8 | J46: 5
C47: =C7*0.75 -> 15 | D47: 5 | E47: =(C7*0.8) -> 16 | F47: 3 | G47: =(C7*0.85) -> 17 | H47: 3 | I47: =(C7*0.5) -> 10 | J47: 5
C48: =C7*0.85 -> 17 | D48: 5 | E48: =(C7*0.9) -> 18 | F48: 3 | G48: =(C7*0.95) -> 19 | H48: 1 | I48: =(C7*0.6) -> 12 | J48: 5
B49: ='Cycle 4'!B49 -> Assistance 1 | C49: ='Cycle 4'!C49 -> 0 | D49: 5x10 | E49: =(G2+1)*C49 -> 0 | F49: 5x10 | G49: =(G2+1)*E49 -> 0 | H49: 5x10 | I49: =C49 -> 0 | J49: 5x10
B50: ='Cycle 4'!B50 -> Assistance 2 | C50: ='Cycle 4'!C50 -> 0 | D50: 5x10 | E50: =(G2+1)*C50 -> 0 | F50: 5x10 | G50: =(G2+1)*E50 -> 0 | H50: 5x10 | I50: =C50 -> 0 | J50: 5x10
B51: ='Cycle 4'!B51 -> Ab Exercise | C51: ='Cycle 4'!C51 -> 0 | D51: 5x12 | E51: =(G2+1)*C51 -> 0 | F51: 5x12 | G51: =(G2+1)*E51 -> 0 | H51: 5x12 | I51: =C51 -> 0 | J51: 5x12
A52: ='Cycle 4'!A52:A57 -> Sat or Sun - ("Off")
C59: MAXES from Cycle 4
B60: Weeks | C60: 1 | D60: 2 | E60: 3 | G60: Best
B61: Squat | C61: =('Cycle 4'!C15*'Cycle 4'!D15*0.033333+'Cycle 4'!C15) -> 30 | D61: =('Cycle 4'!E15*'Cycle 4'!F15*0.033333+'Cycle 4'!E15) -> 30 | E61: =('Cycle 4'!G15*'Cycle 4'!H15*0.033333+'Cycle 4'!G15) -> 29 | G61: =MAX(C61:E61) -> 30
B62: Bench | C62: =('Cycle 4'!C24*'Cycle 4'!D24*0.033333+'Cycle 4'!C24) -> 15 | D62: =('Cycle 4'!E24*'Cycle 4'!F24*0.033333+'Cycle 4'!E24) -> 15 | E62: =('Cycle 4'!G24*'Cycle 4'!H24*0.033333+'Cycle 4'!G24) -> 15 | G62: =MAX(C62:E62) -> 15
B63: Deadlift | C63: =('Cycle 4'!C39*'Cycle 4'!D39*0.033333+'Cycle 4'!C39) -> 30 | D63: =('Cycle 4'!E39*'Cycle 4'!F39*0.033333+'Cycle 4'!E39) -> 30 | E63: =('Cycle 4'!G39*'Cycle 4'!H39*0.033333+'Cycle 4'!G39) -> 29 | G63: =MAX(C63:E63) -> 30
B64: OH Press | C64: =('Cycle 4'!C48*'Cycle 4'!D48*0.033333+'Cycle 4'!C48) -> 15 | D64: =('Cycle 4'!E48*'Cycle 4'!F48*0.033333+'Cycle 4'!E48) -> 15 | E64: =('Cycle 4'!G48*'Cycle 4'!H48*0.033333+'Cycle 4'!G48) -> 15 | G64: =MAX(C64:E64) -> 15

Sheet Cycle 6
B1: 5/3/1 Method Calculator - NO ROUNDING | E1: Cycle Start Date: | I1: Training Max usually should only increase 5lbs for upper and 10lbs for lower. You do NOT need to enter any numbers here unless you really want to manually adjust something. You will need to enter numbers below in the yellow areas and possibly other areas if you want.
B2: www.DIY-StrengthTraining.com | E2: Assistance % Increase: | G2: 0%
B3: Training Max | D3: 90% 1RM | E3: Estimated 1RM | G3: Weight Used | H3: Reps Achieved
B4: Squat: | C4: ='Cycle 5'!C4+10 -> 50 | D4: =(F4*0.9) -> 36 | E4: Squat: | F4: =(G4*H4*0.033333+G4) -> 40 | G4: =IF(G61=E61,'Cycle 5'!G15,IF(G61=D61,'Cycle 5'!E15,IF(G61=C61,'Cycle 5'!C15,"N/A"))) -> 34 | H4: =IF(G61=E61,'Cycle 5'!H15,IF(G61=D61,'Cycle 5'!F15,IF(G61=C61,'Cycle 5'!D15,"N/A"))) -> 5
B5: Bench: | C5: ='Cycle 5'!C5+5 -> 25 | D5: =(F5*0.9) -> 18 | E5: Bench: | F5: =(G5*H5*0.033333+G5) -> 20 | G5: =IF(G62=E62,'Cycle 5'!G24,IF(G62=D62,'Cycle 5'!E24,IF(G62=C62,'Cycle 5'!C24,"N/A"))) -> 17 | H5: =IF(G62=E62,'Cycle 5'!H24,IF(G62=D62,'Cycle 5'!F24,IF(G62=C62,'Cycle 5'!D24,"N/A"))) -> 5
B6: Deadlift: | C6: ='Cycle 5'!C6+10 -> 50 | D6: =(F6*0.9) -> 36 | E6: Deadlift: | F6: =(G6*H6*0.033333+G6) -> 40 | G6: =IF(G63=E63,'Cycle 5'!G39,IF(G63=D63,'Cycle 5'!E39,IF(G63=C63,'Cycle 5'!C39,"N/A"))) -> 34 | H6: =IF(G63=E63,'Cycle 5'!H39,IF(G63=D63,'Cycle 5'!F39,IF(G63=C63,'Cycle 5'!D39,"N/A"))) -> 5
B7: OH Press: | C7: ='Cycle 5'!C7+5 -> 25 | D7: =(F7*0.9) -> 18 | E7: OH Press: | F7: =(G7*H7*0.033333+G7) -> 20 | G7: =IF(G64=E64,'Cycle 5'!G48,IF(G64=D64,'Cycle 5'!E48,IF(G64=C64,'Cycle 5'!C48,"N/A"))) -> 17 | H7: =IF(G64=E64,'Cycle 5'!H48,IF(G64=D64,'Cycle 5'!F48,IF(G64=C64,'Cycle 5'!D48,"N/A"))) -> 5
B8: Exercise | C8: Week 1 | E8: Week 2 | G8: Week 3 | I8: Week 4 - DELOAD
C9: Weight | D9: Reps | E9: Weight | F9: Reps | G9: Weight | H9: Reps | I9: Weight | J9: Reps
A10: ='Cycle 5'!A10:A18 -> Monday | B10: Squat | C10: =C4*0.4 -> 20 | D10: 5 | E10: =C10 -> 20 | F10: 5 | G10: =E10 -> 20 | H10: 5 | I10: - | J10: -
C11: =C4*0.47 -> 24 | D11: 5 | E11: =C4*0.5 -> 25 | F11: 5 | G11: =E11 -> 25 | H11: 5 | I11: - | J11: -
C12: =C4*0.55 -> 28 | D12: 3 | E12: =C4*0.6 -> 30 | F12: 3 | G12: =E12 -> 30 | H12: 3 | I12: - | J12: -
C13: =C4*0.65 -> 33 | D13: 5 | E13: =(C4*0.7) -> 35 | F13: 3 | G13: =(C4*0.75) -> 38 | H13: 5 | I13: =(C4*0.4) -> 20 | J13: 5
C14: =C4*0.75 -> 38 | D14: 5 | E14: =(C4*0.8) -> 40 | F14: 3 | G14: =(C4*0.85) -> 43 | H14: 3 | I14: =(C4*0.5) -> 25 | J14: 5
C15: =C4*0.85 -> 43 | D15: 5 | E15: =(C4*0.9) -> 45 | F15: 3 | G15: =(C4*0.95) -> 48 | H15: 1 | I15: =(C4*0.6) -> 30 | J15: 5
B16: ='Cycle 5'!B16 -> Assistance 1 | C16: ='Cycle 5'!C16 -> 0 | D16: 5x10 | E16: =(G2+1)*C16 -> 0 | F16: 5x10 | G16: =(G2+1)*E16 -> 0 | H16: 5x10 | I16: =C16 -> 0 | J16: 5x10
B17: ='Cycle 5'!B17 -> Assistance 2 | C17: ='Cycle 5'!C17 -> 0 | D17: 5x12 | E17: =(G2+1)*C17 -> 0 | F17: 5x12 | G17: =(G2+1)*E17 -> 0 | H17: 5x12 | I17: =C17 -> 0 | J17: 5x12
B18: ='Cycle 5'!B18 -> Ab Exercise | C18: ='Cycle 5'!C18 -> 0 | D18: 5x13 | E18: =(G2+1)*C18 -> 0 | F18: 5x13 | G18: =(G2+1)*E18 -> 0 | H18: 5x13 | I18: =C18 -> 0 | J18: 5x13
A19: ='Cycle 5'!A19:A27 -> Tuesday | B19: Bench | C19: =C5*0.4 -> 10 | D19: 5 | E19: =C19 -> 10 | F19: 5 | G19: =E19 -> 10 | H19: 5 | I19: - | J19: -
C20: =C5*0.47 -> 12 | D20: 5 | E20: =C5*0.5 -> 13 | F20: 5 | G20: =E20 -> 13 | H20: 5 | I20: - | J20: -
C21: =C5*0.55 -> 14 | D21: 3 | E21: =C5*0.6 -> 15 | F21: 3 | G21: =E21 -> 15 | H21: 3 | I21: - | J21: -
C22: =C5*0.65 -> 16 | D22: 5 | E22: =(C5*0.7) -> 17.5 | F22: 3 | G22: =(C5*0.75) -> 18.75 | H22: 5 | I22: =(C5*0.4) -> 10 | J22: 5
C23: =C5*0.75 -> 19 | D23: 5 | E23: =(C5*0.8) -> 20 | F23: 3 | G23: =(C5*0.85) -> 21.25 | H23: 3 | I23: =(C5*0.5) -> 12.5 | J23: 5
C24: =C5*0.85 -> 21 | D24: 5 | E24: =(C5*0.9) -> 22.5 | F24: 3 | G24: =(C5*0.95) -> 23.75 | H24: 1 | I24: =(C5*0.6) -> 15 | J24: 5
B25: ='Cycle 5'!B25 -> Assistance 1 | C25: ='Cycle 5'!C25 -> 0 | D25: 5x10 | E25: =(G2+1)*C25 -> 0 | F25: 5x10 | G25: =(G2+1)*E25 -> 0 | H25: 5x10 | I25: =C25 -> 0 | J25: 5x10
B26: ='Cycle 5'!B26 -> Assistance 2 | C26: ='Cycle 5'!C26 -> 0 | D26: 5x10 | E26: =(G2+1)*C26 -> 0 | F26: 5x10 | G26: =(G2+1)*E26 -> 0 | H26: 5x10 | I26: =C26 -> 0 | J26: 5x10
B27: ='Cycle 5'!B27 -> Ab Exercise | C27: ='Cycle 5'!C27 -> 0 | E27: =(G2+1)*C27 -> 0 | G27: =(G2+1)*E27 -> 0 | I27: =C27 -> 0
A28: ='Cycle 5'!A28:A33 -> Wed - ("Off")
A34: ='Cycle 5'!A34:A42 -> Thursday | B34: Deadlift | C34: =C6*0.4 -> 20 | D34: 5 | E34: =C34 -> 20 | F34: 5 | G34: =E34 -> 20 | H34: 5 | I34: - | J34: -
C35: =C6*0.47 -> 24 | D35: 5 | E35: =C6*0.5 -> 25 | F35: 5 | G35: =E35 -> 25 | H35: 5 | I35: - | J35: -
C36: =C6*0.55 -> 28 | D36: 3 | E36: =C6*0.6 -> 30 | F36: 3 | G36: =E36 -> 30 | H36: 3 | I36: - | J36: -
C37: =C6*0.65 -> 33 | D37: 5 | E37: =(C6*0.7) -> 35 | F37: 3 | G37: =(C6*0.75) -> 37.5 | H37: 5 | I37: =(C6*0.4) -> 20 | J37: 5
C38: =C6*0.75 -> 38 | D38: 5 | E38: =(C6*0.8) -> 40 | F38: 3 | G38: =(C6*0.85) -> 42.5 | H38: 3 | I38: =(C6*0.5) -> 25 | J38: 5
C39: =C6*0.85 -> 43 | D39: 5 | E39: =(C6*0.9) -> 45 | F39: 3 | G39: =(C6*0.95) -> 47.5 | H39: 1 | I39: =(C6*0.6) -> 30 | J39: 5
B40: ='Cycle 5'!B40 -> Assistance 1 | C40: ='Cycle 5'!C40 -> 0 | D40: 5x10 | E40: =(G2+1)*C40 -> 0 | F40: 5x10 | G40: =(G2+1)*E40 -> 0 | H40: 5x10 | I40: =C40 -> 0 | J40: 5x10
B41: ='Cycle 5'!B41 -> Assistance 2 | C41: ='Cycle 5'!C41 -> 0 | D41: 5x10 | E41: =(G2+1)*C41 -> 0 | F41: 5x10 | G41: =(G2+1)*E41 -> 0 | H41: 5x10 | I41: =C41 -> 0 | J41: 5x10
B42: ='Cycle 5'!B42 -> Ab Exercise | C42: ='Cycle 5'!C42 -> 0 | D42: 5x13 | E42: =(G2+1)*C42 -> 0 | F42: 5x13 | G42: =(G2+1)*E42 -> 0 | H42: 5x13 | I42: =C42 -> 0 | J42: 5x13
A43: ='Cycle 5'!A43:A51 -> Friday | B43: OH Press | C43: =C7*0.4 -> 10 | D43: 5 | E43: =C43 -> 10 | F43: 5 | G43: =E43 -> 10 | H43: 5 | I43: - | J43: -
C44: =C7*0.47 -> 12 | D44: 5 | E44: =C7*0.5 -> 13 | F44: 5 | G44: =E44 -> 13 | H44: 5 | I44: - | J44: -
C45: =C7*0.55 -> 14 | D45: 3 | E45: =C7*0.6 -> 15 | F45: 3 | G45: =E45 -> 15 | H45: 3 | I45: - | J45: -
C46: =C7*0.65 -> 16 | D46: 5 | E46: =(C7*0.7) -> 17.5 | F46: 3 | G46: =(C7*0.75) -> 18.75 | H46: 5 | I46: =(C7*0.4) -> 10 | J46: 5
C47: =C7*0.75 -> 19 | D47: 5 | E47: =(C7*0.8) -> 20 | F47: 3 | G47: =(C7*0.85) -> 21.25 | H47: 3 | I47: =(C7*0.5) -> 12.5 | J47: 5
C48: =C7*0.85 -> 21 | D48: 5 | E48: =(C7*0.9) -> 22.5 | F48: 3 | G48: =(C7*0.95) -> 23.75 | H48: 1 | I48: =(C7*0.6) -> 15 | J48: 5
B49: ='Cycle 5'!B49 -> Assistance 1 | C49: ='Cycle 5'!C49 -> 0 | D49: 5x10 | E49: =(G2+1)*C49 -> 0 | F49: 5x10 | G49: =(G2+1)*E49 -> 0 | H49: 5x10 | I49: =C49 -> 0 | J49: 5x10
B50: ='Cycle 5'!B50 -> Assistance 2 | C50: ='Cycle 5'!C50 -> 0 | D50: 5x10 | E50: =(G2+1)*C50 -> 0 | F50: 5x10 | G50: =(G2+1)*E50 -> 0 | H50: 5x10 | I50: =C50 -> 0 | J50: 5x10
B51: ='Cycle 5'!B51 -> Ab Exercise | C51: ='Cycle 5'!C51 -> 0 | D51: 5x12 | E51: =(G2+1)*C51 -> 0 | F51: 5x12 | G51: =(G2+1)*E51 -> 0 | H51: 5x12 | I51: =C51 -> 0 | J51: 5x12
A52: ='Cycle 5'!A52:A57 -> Sat or Sun - ("Off")
C59: MAXES from Cycle 5
B60: Weeks | C60: 1 | D60: 2 | E60: 3 | G60: Best
B61: Squat | C61: =('Cycle 5'!C15*'Cycle 5'!D15*0.033333+'Cycle 5'!C15) -> 40 | D61: =('Cycle 5'!E15*'Cycle 5'!F15*0.033333+'Cycle 5'!E15) -> 40 | E61: =('Cycle 5'!G15*'Cycle 5'!H15*0.033333+'Cycle 5'!G15) -> 39 | G61: =MAX(C61:E61) -> 40
B62: Bench | C62: =('Cycle 5'!C24*'Cycle 5'!D24*0.033333+'Cycle 5'!C24) -> 20 | D62: =('Cycle 5'!E24*'Cycle 5'!F24*0.033333+'Cycle 5'!E24) -> 20 | E62: =('Cycle 5'!G24*'Cycle 5'!H24*0.033333+'Cycle 5'!G24) -> 20 | G62: =MAX(C62:E62) -> 20
B63: Deadlift | C63: =('Cycle 5'!C39*'Cycle 5'!D39*0.033333+'Cycle 5'!C39) -> 40 | D63: =('Cycle 5'!E39*'Cycle 5'!F39*0.033333+'Cycle 5'!E39) -> 40 | E63: =('Cycle 5'!G39*'Cycle 5'!H39*0.033333+'Cycle 5'!G39) -> 39 | G63: =MAX(C63:E63) -> 40
B64: OH Press | C64: =('Cycle 5'!C48*'Cycle 5'!D48*0.033333+'Cycle 5'!C48) -> 20 | D64: =('Cycle 5'!E48*'Cycle 5'!F48*0.033333+'Cycle 5'!E48) -> 20 | E64: =('Cycle 5'!G48*'Cycle 5'!H48*0.033333+'Cycle 5'!G48) -> 20 | G64: =MAX(C64:E64) -> 20

Sheet Cycle 7
B1: 5/3/1 Method Calculator - NO ROUNDING | E1: Cycle Start Date: | I1: Training Max usually should only increase 5lbs for upper and 10lbs for lower. You do NOT need to enter any numbers here unless you really want to manually adjust something. You will need to enter numbers below in the yellow areas and possibly other areas if you want.
B2: www.DIY-StrengthTraining.com | E2: Assistance % Increase: | G2: 0%
B3: Training Max | D3: 90% 1RM | E3: Estimated 1RM | G3: Weight Used | H3: Reps Achieved
B4: Squat: | C4: ='Cycle 6'!C4+10 -> 60 | D4: =(F4*0.9) -> 45 | E4: Squat: | F4: =(G4*H4*0.033333+G4) -> 50 | G4: =IF(G61=E61,'Cycle 6'!G15,IF(G61=D61,'Cycle 6'!E15,IF(G61=C61,'Cycle 6'!C15,"N/A"))) -> 43 | H4: =IF(G61=E61,'Cycle 6'!H15,IF(G61=D61,'Cycle 6'!F15,IF(G61=C61,'Cycle 6'!D15,"N/A"))) -> 5
B5: Bench: | C5: ='Cycle 6'!C5+5 -> 30 | D5: =(F5*0.9) -> 22 | E5: Bench: | F5: =(G5*H5*0.033333+G5) -> 25 | G5: =IF(G62=E62,'Cycle 6'!G24,IF(G62=D62,'Cycle 6'!E24,IF(G62=C62,'Cycle 6'!C24,"N/A"))) -> 21 | H5: =IF(G62=E62,'Cycle 6'!H24,IF(G62=D62,'Cycle 6'!F24,IF(G62=C62,'Cycle 6'!D24,"N/A"))) -> 5
B6: Deadlift: | C6: ='Cycle 6'!C6+10 -> 60 | D6: =(F6*0.9) -> 45 | E6: Deadlift: | F6: =(G6*H6*0.033333+G6) -> 50 | G6: =IF(G63=E63,'Cycle 6'!G39,IF(G63=D63,'Cycle 6'!E39,IF(G63=C63,'Cycle 6'!C39,"N/A"))) -> 43 | H6: =IF(G63=E63,'Cycle 6'!H39,IF(G63=D63,'Cycle 6'!F39,IF(G63=C63,'Cycle 6'!D39,"N/A"))) -> 5
B7: OH Press: | C7: ='Cycle 6'!C7+5 -> 30 | D7: =(F7*0.9) -> 22 | E7: OH Press: | F7: =(G7*H7*0.033333+G7) -> 25 | G7: =IF(G64=E64,'Cycle 6'!G48,IF(G64=D64,'Cycle 6'!E48,IF(G64=C64,'Cycle 6'!C48,"N/A"))) -> 21 | H7: =IF(G64=E64,'Cycle 6'!H48,IF(G64=D64,'Cycle 6'!F48,IF(G64=C64,'Cycle 6'!D48,"N/A"))) -> 5
B8: Exercise | C8: Week 1 | E8: Week 2 | G8: Week 3 | I8: Week 4 - DELOAD
C9: Weight | D9: Reps | E9: Weight | F9: Reps | G9: Weight | H9: Reps | I9: Weight | J9: Reps
A10: ='Cycle 6'!A10:A18 -> Monday | B10: Squat | C10: =C4*0.4 -> 24 | D10: 5 | E10: =C10 -> 24 | F10: 5 | G10: =E10 -> 24 | H10: 5 | I10: - | J10: -
C11: =C4*0.47 -> 28 | D11: 5 | E11: =C4*0.5 -> 30 | F11: 5 | G11: =E11 -> 30 | H11: 5 | I11: - | J11: -
C12: =C4*0.55 -> 33 | D12: 3 | E12: =C4*0.6 -> 36 | F12: 3 | G12: =E12 -> 36 | H12: 3 | I12: - | J12: -
C13: =C4*0.65 -> 39 | D13: 5 | E13: =(C4*0.7) -> 42 | F13: 3 | G13: =(C4*0.75) -> 45 | H13: 5 | I13: =(C4*0.4) -> 24 | J13: 5
C14: =C4*0.75 -> 45 | D14: 5 | E14: =(C4*0.8) -> 48 | F14: 3 | G14: =(C4*0.85) -> 51 | H14: 3 | I14: =(C4*0.5) -> 30 | J14: 5
C15: =C4*0.85 -> 51 | D15: 5 | E15: =(C4*0.9) -> 54 | F15: 3 | G15: =(C4*0.95) -> 57 | H15: 1 | I15: =(C4*0.6) -> 36 | J15: 5
B16: ='Cycle 6'!B16 -> Assistance 1 | C16: ='Cycle 6'!C16 -> 0 | D16: 5x10 | E16: =(G2+1)*C16 -> 0 | F16: 5x10 | G16: =(G2+1)*E16 -> 0 | H16: 5x10 | I16: =C16 -> 0 | J16: 5x10
B17: ='Cycle 6'!B17 -> Assistance 2 | C17: ='Cycle 6'!C17 -> 0 | D17: 5x12 | E17: =(G2+1)*C17 -> 0 | F17: 5x12 | G17: =(G2+1)*E17 -> 0 | H17: 5x12 | I17: =C17 -> 0 | J17: 5x12
B18: ='Cycle 6'!B18 -> Ab Exercise | C18: ='Cycle 6'!C18 -> 0 | D18: 5x13 | E18: =(G2+1)*C18 -> 0 | F18: 5x13 | G18: =(G2+1)*E18 -> 0 | H18: 5x13 | I18: =C18 -> 0 | J18: 5x13
A19: ='Cycle 6'!A19:A27 -> Tuesday | B19: Bench | C19: =C5*0.4 -> 12 | D19: 5 | E19: =C19 -> 12 | F19: 5 | G19: =E19 -> 12 | H19: 5 | I19: - | J19: -
C20: =C5*0.47 -> 14 | D20: 5 | E20: =C5*0.5 -> 15 | F20: 5 | G20: =E20 -> 15 | H20: 5 | I20: - | J20: -
C21: =C5*0.55 -> 17 | D21: 3 | E21: =C5*0.6 -> 18 | F21: 3 | G21: =E21 -> 18 | H21: 3 | I21: - | J21: -
C22: =C5*0.65 -> 20 | D22: 5 | E22: =(C5*0.7) -> 21 | F22: 3 | G22: =(C5*0.75) -> 22.5 | H22: 5 | I22: =(C5*0.4) -> 12 | J22: 5
C23: =C5*0.75 -> 23 | D23: 5 | E23: =(C5*0.8) -> 24 | F23: 3 | G23: =(C5*0.85) -> 25.5 | H23: 3 | I23: =(C5*0.5) -> 15 | J23: 5
C24: =C5*0.85 -> 26 | D24: 5 | E24: =(C5*0.9) -> 27 | F24: 3 | G24: =(C5*0.95) -> 28.5 | H24: 1 | I24: =(C5*0.6) -> 18 | J24: 5
B25: ='Cycle 6'!B25 -> Assistance 1 | C25: ='Cycle 6'!C25 -> 0 | D25: 5x10 | E25: =(G2+1)*C25 -> 0 | F25: 5x10 | G25: =(G2+1)*E25 -> 0 | H25: 5x10 | I25: =C25 -> 0 | J25: 5x10
B26: ='Cycle 6'!B26 -> Assistance 2 | C26: ='Cycle 6'!C26 -> 0 | D26: 5x10 | E26: =(G2+1)*C26 -> 0 | F26: 5x10 | G26: =(G2+1)*E26 -> 0 | H26: 5x10 | I26: =C26 -> 0 | J26: 5x10
B27: ='Cycle 6'!B27 -> Ab Exercise | C27: ='Cycle 6'!C27 -> 0 | E27: =(G2+1)*C27 -> 0 | G27: =(G2+1)*E27 -> 0 | I27: =C27 -> 0
A28: ='Cycle 6'!A28:A33 -> Wed - ("Off")
A34: ='Cycle 6'!A34:A42 -> Thursday | B34: Deadlift | C34: =C6*0.4 -> 24 | D34: 5 | E34: =C34 -> 24 | F34: 5 | G34: =E34 -> 24 | H34: 5 | I34: - | J34: -
C35: =C6*0.47 -> 28 | D35: 5 | E35: =C6*0.5 -> 30 | F35: 5 | G35: =E35 -> 30 | H35: 5 | I35: - | J35: -
C36: =C6*0.55 -> 33 | D36: 3 | E36: =C6*0.6 -> 36 | F36: 3 | G36: =E36 -> 36 | H36: 3 | I36: - | J36: -
C37: =C6*0.65 -> 39 | D37: 5 | E37: =(C6*0.7) -> 42 | F37: 3 | G37: =(C6*0.75) -> 45 | H37: 5 | I37: =(C6*0.4) -> 24 | J37: 5
C38: =C6*0.75 -> 45 | D38: 5 | E38: =(C6*0.8) -> 48 | F38: 3 | G38: =(C6*0.85) -> 51 | H38: 3 | I38: =(C6*0.5) -> 30 | J38: 5
C39: =C6*0.85 -> 51 | D39: 5 | E39: =(C6*0.9) -> 54 | F39: 3 | G39: =(C6*0.95) -> 57 | H39: 1 | I39: =(C6*0.6) -> 36 | J39: 5
B40: ='Cycle 6'!B40 -> Assistance 1 | C40: ='Cycle 6'!C40 -> 0 | D40: 5x10 | E40: =(G2+1)*C40 -> 0 | F40: 5x10 | G40: =(G2+1)*E40 -> 0 | H40: 5x10 | I40: =C40 -> 0 | J40: 5x10
B41: ='Cycle 6'!B41 -> Assistance 2 | C41: ='Cycle 6'!C41 -> 0 | D41: 5x10 | E41: =(G2+1)*C41 -> 0 | F41: 5x10 | G41: =(G2+1)*E41 -> 0 | H41: 5x10 | I41: =C41 -> 0 | J41: 5x10
B42: ='Cycle 6'!B42 -> Ab Exercise | C42: ='Cycle 6'!C42 -> 0 | D42: 5x13 | E42: =(G2+1)*C42 -> 0 | F42: 5x13 | G42: =(G2+1)*E42 -> 0 | H42: 5x13 | I42: =C42 -> 0 | J42: 5x13
A43: ='Cycle 6'!A43:A51 -> Friday | B43: OH Press | C43: =C7*0.4 -> 12 | D43: 5 | E43: =C43 -> 12 | F43: 5 | G43: =E43 -> 12 | H43: 5 | I43: - | J43: -
C44: =C7*0.47 -> 14 | D44: 5 | E44: =C7*0.5 -> 15 | F44: 5 | G44: =E44 -> 15 | H44: 5 | I44: - | J44: -
C45: =C7*0.55 -> 17 | D45: 3 | E45: =C7*0.6 -> 18 | F45: 3 | G45: =E45 -> 18 | H45: 3 | I45: - | J45: -
C46: =C7*0.65 -> 20 | D46: 5 | E46: =(C7*0.7) -> 21 | F46: 3 | G46: =(C7*0.75) -> 22.5 | H46: 5 | I46: =(C7*0.4) -> 12 | J46: 5
C47: =C7*0.75 -> 23 | D47: 5 | E47: =(C7*0.8) -> 24 | F47: 3 | G47: =(C7*0.85) -> 25.5 | H47: 3 | I47: =(C7*0.5) -> 15 | J47: 5
C48: =C7*0.85 -> 26 | D48: 5 | E48: =(C7*0.9) -> 27 | F48: 3 | G48: =(C7*0.95) -> 28.5 | H48: 1 | I48: =(C7*0.6) -> 18 | J48: 5
B49: ='Cycle 6'!B49 -> Assistance 1 | C49: ='Cycle 6'!C49 -> 0 | D49: 5x10 | E49: =(G2+1)*C49 -> 0 | F49: 5x10 | G49: =(G2+1)*E49 -> 0 | H49: 5x10 | I49: =C49 -> 0 | J49: 5x10
B50: ='Cycle 6'!B50 -> Assistance 2 | C50: ='Cycle 6'!C50 -> 0 | D50: 5x10 | E50: =(G2+1)*C50 -> 0 | F50: 5x10 | G50: =(G2+1)*E50 -> 0 | H50: 5x10 | I50: =C50 -> 0 | J50: 5x10
B51: ='Cycle 6'!B51 -> Ab Exercise | C51: ='Cycle 6'!C51 -> 0 | D51: 5x12 | E51: =(G2+1)*C51 -> 0 | F51: 5x12 | G51: =(G2+1)*E51 -> 0 | H51: 5x12 | I51: =C51 -> 0 | J51: 5x12
A52: ='Cycle 6'!A52:A57 -> Sat or Sun - ("Off")
C59: MAXES from Cycle 6
B60: Weeks | C60: 1 | D60: 2 | E60: 3 | G60: Best
B61: Squat | C61: =('Cycle 6'!C15*'Cycle 6'!D15*0.033333+'Cycle 6'!C15) -> 50 | D61: =('Cycle 6'!E15*'Cycle 6'!F15*0.033333+'Cycle 6'!E15) -> 49 | E61: =('Cycle 6'!G15*'Cycle 6'!H15*0.033333+'Cycle 6'!G15) -> 49 | G61: =MAX(C61:E61) -> 50
B62: Bench | C62: =('Cycle 6'!C24*'Cycle 6'!D24*0.033333+'Cycle 6'!C24) -> 25 | D62: =('Cycle 6'!E24*'Cycle 6'!F24*0.033333+'Cycle 6'!E24) -> 25 | E62: =('Cycle 6'!G24*'Cycle 6'!H24*0.033333+'Cycle 6'!G24) -> 25 | G62: =MAX(C62:E62) -> 25
B63: Deadlift | C63: =('Cycle 6'!C39*'Cycle 6'!D39*0.033333+'Cycle 6'!C39) -> 50 | D63: =('Cycle 6'!E39*'Cycle 6'!F39*0.033333+'Cycle 6'!E39) -> 49 | E63: =('Cycle 6'!G39*'Cycle 6'!H39*0.033333+'Cycle 6'!G39) -> 49 | G63: =MAX(C63:E63) -> 50
B64: OH Press | C64: =('Cycle 6'!C48*'Cycle 6'!D48*0.033333+'Cycle 6'!C48) -> 25 | D64: =('Cycle 6'!E48*'Cycle 6'!F48*0.033333+'Cycle 6'!E48) -> 25 | E64: =('Cycle 6'!G48*'Cycle 6'!H48*0.033333+'Cycle 6'!G48) -> 25 | G64: =MAX(C64:E64) -> 25
